fUSD/lending_fUSD_20240409
["ID","MTS","AMOUNT","RATE_DAILY","PERIOD"]
[322006569,1712681449670,-521.27,0.00019452,2]
[322006570,1712681449681,-500.0,0.00019452,2]
[322006571,1712681449692,-950.68,0.00019452,2]
[322006572,1712681449702,-500.0,0.00019452,2]
[322006573,1712681449712,-500.0,0.00019452,2]
[322006574,1712681449721,-531.62,0.00019452,2]
[322006575,1712681449732,-500.0,0.00019452,2]
[322006576,1712681449742,-849.63,0.00019452,2]
[322006577,1712681449753,-500.0,0.00019452,2]
[322006578,1712681449764,-500.0,0.00019452,2]
[322006579,1712681449774,-500.0,0.00019452,2]
[322006580,1712681449784,-500.0,0.00019452,2]
[322006581,1712681449793,-530.58,0.00019452,2]
[322006582,1712681449803,-500.0,0.00019452,2]
[322006583,1712681449814,-500.0,0.00019452,2]
[322006584,1712681449824,-500.0,0.00019452,2]
[322006585,1712681449835,-500.0,0.00019452,2]
[322006586,1712681449845,-500.0,0.00019452,2]
[322006587,1712681449855,-500.0,0.00019452,2]
[322006588,1712681449865,-486.43,0.00019452,2]
[322006589,1712681449875,-500.0,0.00019452,2]
[322006590,1712681449885,-500.0,0.00019452,2]
[322006591,1712681449898,-500.0,0.00019452,2]
[322006592,1712681449908,-500.0,0.00019452,2]
[322006593,1712681449920,-500.29258366,0.00019452,2]
[322006594,1712681449931,-500.0,0.00019452,2]
[322006595,1712681449942,-500.0,0.00019452,2]
[322006596,1712681449953,-500.0,0.00019452,2]
[322006597,1712681449963,-500.0,0.00019452,2]
[322006598,1712681449975,-500.0,0.00019452,2]
[322006599,1712681449986,-500.0,0.00019452,2]
[322006600,1712681449997,-500.0,0.00019452,2]
[322006601,1712681450006,-500.0,0.00019452,2]
[322006602,1712681450017,-500.0,0.00019452,2]
[322006603,1712681450028,-500.0,0.00019452,2]
[322006604,1712681450040,-165.41014008,0.00019452,2]
[322006605,1712681450067,-334.58985992,0.00019452,2]
[322006606,1712681450078,-500.0,0.00019452,2]
[322006607,1712681450089,-500.0,0.00019452,2]
[322006608,1712681450100,-500.0,0.00019452,2]
[322006609,1712681450111,-500.0,0.00019452,2]
[322006610,1712681450122,-281.00014008,0.00019452,2]
[322006611,1712681450175,-218.99985992,0.00019452,2]
[322006612,1712681450184,-297.38,0.00019452,2]
[322006613,1712681450195,-668.25,0.00019452,2]
[322006614,1712681450205,-500.0,0.00019452,2]
[322006615,1712681450215,-500.0,0.00019452,2]
[322006616,1712681450225,-621.59,0.00019452,2]
[322006617,1712681450235,-739.56,0.00019452,2]
[322006618,1712681450244,-500.0,0.00019452,2]
[322006619,1712681450255,-500.0,0.00019452,2]
[322006620,1712681450266,-500.0,0.00019452,2]
[322006621,1712681450276,-500.0,0.00019452,2]
[322006622,1712681450287,-500.0,0.00019452,2]
[322006623,1712681450297,-500.23214008,0.00019452,2]
[322006624,1712681450320,-227.79785992,0.00019452,2]
[322006625,1712681450330,-132.65038091,0.00019452,2]
[322006626,1712681450344,-367.34961909,0.00019452,2]
[322006627,1712681450354,-134.78790357,0.00019452,2]
[322006628,1712681456213,172.17,0.00019236,10]
[322006631,1712681492376,200.0,0.00022387,30]
[322006632,1712681492425,200.0,0.00022387,30]
[322006633,1712681492492,200.0,0.00022387,30]
[322006634,1712681492544,228.17506213,0.00022387,30]
[322006635,1712681492630,200.0,0.00022387,30]
[322006637,1712681552345,906.00883786,0.00015,2]
[322006638,1712681597964,205.0,9.8e-05,2]
[322006639,1712681602172,241.97244863,0.000101,2]
[322006641,1712681639721,2225.66,0.00012,2]
[322006642,1712681650787,1077.62762297,0.00032457,30]
[322006643,1712681672608,450.47550195,0.00018,2]
[322006654,1712681877504,512.11,0.00016305,2]
[322006702,1712682162521,150.0,0.00017954,2]
[322006703,1712682260228,19636.48974114,0.00017954,2]
[322006705,1712682276226,5845.05629878,0.00017954,2]
[322006706,1712682292532,155.0,0.00018002,2]
[322006707,1712682303058,150.0,0.00017063,2]
[322006708,1712682305517,150.0,0.00017063,2]
[322006709,1712682309390,626.6,0.00017952,2]
[322006710,1712682311878,150.0,0.00017063,2]
[322006711,1712682323688,150.0,0.00017063,2]
[322006713,1712682345163,-155.0,0.00018003,2]
[322006714,1712682345184,-4559.58,0.00018008,2]
[322006715,1712682345203,-150.0,0.00018092,2]
[322006716,1712682345225,-23900.0,0.00018093,2]
[322006717,1712682345245,-500.0,0.00018119,2]
[322006718,1712682345265,-630.19,0.00018152,2]
[322006719,1712682345285,-250.0,0.00018252,2]
[322006720,1712682345306,-1000.0,0.00018315,2]
[322006721,1712682345326,-23180.29374909,0.00018316,2]
[322006722,1712682359893,595.7,0.0001622,2]
[322006725,1712682418506,157.56,0.00027207,120]
[322006726,1712682454171,-157.56,0.00018138,2]
[322006727,1712682454190,-1000.0,0.00018315,2]
[322006728,1712682454210,-1000.0,0.00018315,2]
[322006729,1712682454230,-4514.53178829,0.00018316,2]
[322006731,1712682518163,189.45,0.00014465,2]
[322006764,1712682632314,-615.96962,0.00018065,2]
[322006765,1712682632378,-348.19131478,0.00018065,2]
[322006766,1712682632441,-20935.37122281,0.00018065,2]
[322006767,1712682632453,-615.77052,0.00018065,2]
[322006768,1712682632506,-854.70609405,0.00018065,2]
[322006769,1712682632570,-267.25206503,0.00018065,2]
[322006770,1712682632635,-262.73916333,0.00018065,2]
[322006773,1712682632645,-250.0,0.00018104,2]
[322006774,1712682632654,-38000.48175661,0.00018316,2]
[322006776,1712682632664,-910.0,0.00018437,2]
[322006778,1712682632674,-278.60761241,0.00018437,2]
[322006779,1712682632685,-221.38238759,0.00018437,2]
[322006780,1712682632695,-595.7,0.00018484,2]
[322006781,1712682632704,-167.33,0.00018629,2]
[322006783,1712682632713,-45.08261241,0.00018775,2]
[322006786,1712682632724,-1529.15910886,0.00018775,2]
[322006789,1712682632734,-151.16555485,0.00018775,2]
[322006792,1712682632742,-4339.54751175,0.00018775,2]
[322006795,1712682632751,-397.64,0.00018865,3]
[322006797,1712682632760,-157.15060433,0.00018873,2]
[322006799,1712682632769,-157.95710068,0.00018874,2]
[322006801,1712682632781,-325.4872,0.00018875,2]
[322006803,1712682632790,-54392.4829,0.00018875,2]
[322006805,1712682632800,-47358.51001799,0.00018875,2]
[322006841,1712682638045,-521.25,0.00018875,2]
[322006844,1712682638058,-729.34075371,0.00018875,2]
[322006846,1712682638071,-196390.8992283,0.00018875,2]
[322006848,1712682638083,-1000.0,0.00018875,2]
[322006850,1712682638093,-13561.21454124,0.00018875,2]
[322006852,1712682638104,-7500.0,0.00018875,2]
[322006853,1712682638115,-220.46914251,0.00018876,2]
[322006855,1712682638125,-6079.5275875,0.00018876,2]
[322006857,1712682638135,-1097.21935579,0.00018876,2]
[322006859,1712682638146,-6766.48462887,0.000189,2]
[322006862,1712682638158,-976.19537113,0.000189,2]
[322006864,1712682638169,-1292.05871203,0.000189,2]
[322006866,1712682638181,-356.967728,0.000189,2]
[322006872,1712682638243,-34300.0,0.000189,2]
[322006875,1712682638257,-2399.97355997,0.000189,2]
[322006877,1712682638266,-150.0,0.00018959,2]
[322006879,1712682638277,-5921.299767,0.00018965,2]
[322006881,1712682638296,-178.52843388,0.00018965,2]
[322006883,1712682638305,-1051.68,0.00018974,2]
[322006885,1712682638314,-1051.68,0.00018974,2]
[322006887,1712682638324,-1051.68,0.00018974,2]
[322006889,1712682638333,-1051.68,0.00018974,2]
[322006891,1712682638342,-1051.68,0.00018974,2]
[322006893,1712682638351,-934.50978422,0.00018974,2]
[322006896,1712682638369,-117.17021578,0.00018974,2]
[322006898,1712682638379,-1051.68,0.00018974,2]
[322006900,1712682638388,-1051.68,0.00018974,2]
[322006902,1712682638397,-1051.68,0.00018974,2]
[322006904,1712682638406,-211.26978422,0.00018974,2]
[322006912,1712682638495,-840.41021578,0.00018974,2]
[322006913,1712682638504,-1051.68,0.00018974,2]
[322006914,1712682638513,-1051.68,0.00018974,2]
[322006915,1712682638522,-1051.68,0.00018974,2]
[322006916,1712682638536,-1051.68,0.00018974,2]
[322006917,1712682638546,-1051.68,0.00018974,2]
[322006918,1712682638556,-1051.68,0.00018974,2]
[322006919,1712682638565,-1051.68,0.00018974,2]
[322006920,1712682638574,-1051.68,0.00018974,2]
[322006921,1712682638584,-1051.68,0.00018974,2]
[322006922,1712682638593,-1051.68,0.00018974,2]
[322006923,1712682638602,-1051.68,0.00018974,2]
[322006924,1712682638611,-1051.68,0.00018974,2]
[322006925,1712682638620,-1051.68,0.00018974,2]
[322006926,1712682638629,-1051.68,0.00018974,2]
[322006927,1712682638639,-92074.04340068,0.00018975,2]
[322006928,1712682638651,-3478.7,0.00018975,2]
[322006929,1712682638662,-9623.81346557,0.00018975,2]
[322006930,1712682638677,-7188.13990121,0.00018975,2]
[322006931,1712682638689,-1980.16419333,0.00018975,2]
[322006932,1712682638701,-4497.52000001,0.00018975,2]
[322006933,1712682638713,-4789.43655805,0.00018975,2]
[322006934,1712682638725,-9890.64289586,0.00018975,2]
[322006935,1712682638736,-353.4490463,0.00018975,2]
[322006946,1712682639396,-6266.09130307,0.00018975,2]
[322006974,1712682639519,-265.1286,0.00018975,2]
[322006977,1712682639530,-9905.66907249,0.00018975,2]
[322006980,1712682639547,-6866.77231736,0.00018975,2]
[322006989,1712682639601,-518.82255499,0.00018975,2]
[322006990,1712682639613,-349.62275878,0.00018975,2]
[322006991,1712682639625,-333.81892786,0.00018975,2]
[322007002,1712682639718,-413.57991198,0.00018975,2]
[322007004,1712682639730,-697.93999992,0.00018975,2]
[322007008,1712682639755,-29305.80003,0.00018975,2]
[322007014,1712682639811,-607.21348402,0.00018975,2]
[322007016,1712682639823,-69740.51153841,0.00018975,2]
[322007030,1712682642424,-688.38156469,0.00018975,2]
[322007031,1712682642437,-481.2146,0.00018975,2]
[322007032,1712682642448,-987.596933,0.00018975,2]
[322007033,1712682642630,-5970.70015546,0.00018975,2]
[322007034,1712682642716,-2003.30288378,0.00018975,2]
[322007035,1712682642728,-5492.17569661,0.00018975,2]
[322007036,1712682642800,-1769.92128612,0.00018975,2]
[322007037,1712682642811,-4354.42817196,0.00018975,2]
[322007039,1712682642834,-146764.60671584,0.00018975,2]
[322007040,1712682642873,-2059.83516,0.00018975,2]
[322007041,1712682643048,-94.38944463,0.00018975,2]
[322007042,1712682643068,-1199.9978452,0.00018975,2]
[322007043,1712682643079,-656.755,0.00018975,2]
[322007191,1712682645554,-378.34670481,0.00018876,2]
[322007192,1712682645747,-2883.51179169,0.00018876,2]
[322007193,1712682645757,-139728.76181137,0.00018975,2]
[322007194,1712682645865,-1190.39064953,0.00018975,2]
[322007195,1712682645876,-7613.854325,0.00018975,2]
[322007196,1712682645921,-17899.15056494,0.00018975,2]
[322007197,1712682649889,155.6868564,0.00018,2]
[322007199,1712682652104,155.0,0.00014465,2]
[322007200,1712682656723,307.17927733,0.00014465,2]
[322007202,1712682730596,296.25451302,0.00014465,2]
[322007203,1712682732211,292.16766327,0.00014465,2]
[322007204,1712682737111,1278.86264557,0.00012,2]
[322007205,1712682737134,1257.18876178,0.00012,2]
[322007206,1712682737284,10875.02691721,0.00014465,2]
[322007207,1712682738556,168.18,0.00014522,2]
[322007208,1712682738678,168.18,0.00016942,2]
[322007209,1712682741550,407.69096963,0.00014465,2]
[322007210,1712682746429,287.85246364,0.00014465,2]
[322007211,1712682750590,296.25451302,0.00014465,2]
[322007212,1712682753968,292.16766327,0.00014465,2]
[322007213,1712682755137,2536.05140735,0.00012,2]
[322007214,1712682755492,407.69096963,0.00014465,2]
[322007215,1712682758410,287.85246364,0.00014465,2]
[322007216,1712682768590,296.25451302,0.00014465,2]
[322007217,1712682772332,438.12510859,0.00014465,2]
[322007218,1712682774360,287.8007403,0.00014465,2]
[322007219,1712682775517,407.69096963,0.00014465,2]
[322007220,1712682779196,2536.05140735,0.00012,2]
[322007221,1712682779428,155.0,0.00014465,2]
[322007222,1712682787100,296.25451302,0.00014465,2]
[322007223,1712682791513,221.26718528,0.00014465,2]
[322007224,1712682797493,155.0,0.00014465,2]
[322007225,1712682801097,581.43418506,0.00012,2]
[322007227,1712682805097,296.25451302,0.00014465,2]
[322007229,1712682819405,155.0,0.00014465,2]
[322007230,1712682823092,296.25451302,0.00014465,2]
[322007231,1712682826681,311.40808509,0.00011572,2]
[322007232,1712682837423,155.0,0.00014465,2]
[322007233,1712682841101,398.83718972,0.00014465,2]
[322007235,1712682855765,155.0,0.00011572,2]
[322007237,1712682873420,250.98962684,0.00011572,2]
[322007238,1712682896881,830.71,0.0001613,2]
[322007239,1712682921669,350.466913,0.00017534,2]
[322007240,1712682925251,4202.96,0.00017997,2]
[322007241,1712682945515,150.51,0.00017961,2]
[322007243,1712683049763,943.72439732,0.00017924,2]
[322007277,1712683152559,17467.91,0.00017911,2]
[322007304,1712683210445,191.99,0.00016712,2]
[322007319,1712683226275,315.420222,0.00017808,2]
[322007334,1712683255631,150.0,0.00017837,2]
[322007339,1712683270100,417.06,0.00017839,2]
[322007349,1712683332021,168.18,0.0001426,2]
[322007361,1712683364277,-155.0,0.00018006,2]
[322007362,1712683364299,-785.52907082,0.00018007,2]
[322007363,1712683364319,-2350.35141617,0.00018008,2]
[322007364,1712683364339,-809.38771434,0.00018009,2]
[322007365,1712683364361,-161.93162874,0.00018165,2]
[322007366,1712683364386,-940.0,0.00018266,2]
[322007367,1712683364407,-830.71,0.00018394,2]
[322007368,1712683364431,-167.72,0.00018436,2]
[322007369,1712683364451,-654.37016993,0.00018532,2]
[322007382,1712683517882,747.63,0.00015995,2]
[322007394,1712683685127,150.0,0.0002299,20]
[322007396,1712683720768,150.0,0.00025,20]
[322007405,1712683757343,970.0,0.00017922,2]
[322007411,1712683825077,283.8782,0.00017808,2]
[322007433,1712683832079,-492.5361,0.00018257,2]
[322007434,1712683832091,-316.85161434,0.00018257,2]
[322007435,1712683832100,-747.63,0.00018258,2]
[322007436,1712683832110,-921.6101,0.00018432,2]
[322007437,1712683832119,-345.62983007,0.00018532,2]
[322007438,1712683832128,-499.99,0.00018532,2]
[322007439,1712683832138,-1000.0,0.00018532,2]
[322007440,1712683832147,-727.2416,0.00018575,2]
[322007441,1712683832156,-283.8782,0.0001863,2]
[322007442,1712683832165,-9011.0086557,0.00018673,2]
[322007443,1712683832177,-6943.41854464,0.00018673,2]
[322007444,1712683832186,-205.34985453,0.00018675,2]
[322007445,1712683832196,-312.31645137,0.00018675,2]
[322007446,1712683832205,-1247.8446124,0.00018675,2]
[322007447,1712683832245,-6855.9804,0.00018675,2]
[322007448,1712683832257,-2033.6815867,0.00018675,2]
[322007449,1712683832268,-1162.26223792,0.00018675,2]
[322007450,1712683832287,-24139.5857131,0.00018675,2]
[322007451,1712683832298,-2213.91868258,0.00018675,2]
[322007452,1712683832310,-3854.0400004,0.00018675,2]
[322007453,1712683832321,-2498.078602,0.00018675,2]
[322007454,1712683832332,-1325.14524,0.00018675,2]
[322007455,1712683832343,-21535.59380187,0.00018675,2]
[322007456,1712683832383,-1047.42676983,0.00018675,2]
[322007457,1712683832394,-8738.14549571,0.00018675,2]
[322007458,1712683832407,-292.62565271,0.00018675,2]
[322007459,1712683832418,-4555.88686457,0.00018675,2]
[322007460,1712683832429,-312.06501205,0.00018675,2]
[322007461,1712683832452,-1875.10744736,0.00018675,2]
[322007498,1712683832729,-507.43868763,0.00018675,2]
[322007499,1712683832745,-8208.0,0.00018675,2]
[322007500,1712683832777,-7597.17319317,0.00018675,2]
[322007501,1712683832788,-5002.927,0.00018675,2]
[322007502,1712683832799,-940.2971,0.00018675,2]
[322007503,1712683832810,-39921.1963,0.00018675,2]
[322007504,1712683832823,-4718.36355901,0.00018773,2]
[322007505,1712683832832,-263.18712339,0.00018773,2]
[322007506,1712683832843,-1500.0,0.00018773,2]
[322007507,1712683832853,-155.0,0.00018773,2]
[322007508,1712683832863,-362.42250485,0.00018773,2]
[322007509,1712683832873,-408.15974753,0.00018773,2]
[322007510,1712683832883,-155.0,0.00018773,2]
[322007511,1712683832894,-206.31215934,0.00018773,2]
[322007512,1712683832904,-304.65280712,0.00018773,2]
[322007513,1712683832914,-665.77471081,0.00018773,2]
[322007514,1712683832924,-290.05458115,0.00018773,2]
[322007515,1712683832934,-6168.38,0.00018774,2]
[322007516,1712683832944,-227.81,0.00018774,2]
[322007517,1712683832954,-27970.83,0.00018774,2]
[322007518,1712683832965,-19999.99,0.00018774,2]
[322007519,1712683832976,-9648.5,0.00018774,2]
[322007520,1712683832987,-7509.99,0.00018774,2]
[322007521,1712683832996,-245000.0,0.00018775,2]
[322007522,1712683833007,-1000.0,0.00018775,2]
[322007523,1712683833017,-500.0,0.00018775,2]
[322007524,1712683833027,-312.31645135,0.00018834,2]
[322007525,1712683833037,-7500.0,0.00018875,2]
[322007526,1712683833047,-177.99290906,0.00018876,2]
[322007527,1712683833057,-184.28691249,0.0001888,2]
[322007528,1712683833066,-845.64846611,0.00018893,2]
[322007529,1712683833075,-2174.572331,0.00018893,2]
[322007530,1712683833085,-731.47957054,0.00018893,2]
[322007531,1712683833095,-252.7373998,0.00018893,2]
[322007532,1712683833106,-10000.0,0.000189,2]
[322007533,1712683833116,-1000.0,0.000189,2]
[322007534,1712683833125,-176.37531404,0.000189,2]
[322007535,1712683833134,-15954.42720033,0.0001892,2]
[322007536,1712683833144,-8721.9814552,0.00018973,2]
[322007537,1712683833154,-1057.50232524,0.00018974,2]
[322007538,1712683833163,-236.01814319,0.00018974,2]
[322007539,1712683833173,-1040.51157298,0.00018974,2]
[322007540,1712683833182,-647.02041791,0.00018974,2]
[322007541,1712683833191,-2000.0,0.00018975,2]
[322007542,1712683833200,-200.0,0.00018975,2]
[322007543,1712683833210,-200.0,0.00018975,2]
[322007544,1712683833219,-1472.44466,0.00018975,2]
[322007545,1712683833229,-1472.44466,0.00018975,2]
[322007546,1712683833238,-1472.44466,0.00018975,2]
[322007547,1712683833247,-1472.44466,0.00018975,2]
[322007548,1712683833256,-1472.44466,0.00018975,2]
[322007549,1712683833266,-1472.44467,0.00018975,2]
[322007550,1712683833275,-140445.43480251,0.00018975,2]
[322007551,1712683833289,-1458.00529888,0.00018975,2]
[322007552,1712683833301,-3412.35,0.00018975,2]
[322007555,1712683838074,-3222.39509799,0.00018256,2]
[322007556,1712683838086,-3033.64402287,0.00018256,2]
[322007557,1712683838096,-3988.78272676,0.00018673,2]
[322007558,1712683838106,-4739.90612606,0.00018975,2]
[322007559,1712683838118,-988655.14860013,0.00018975,2]
[322007560,1712683838130,-19157.28845493,0.00018975,2]
[322007561,1712683838142,-1374.82641792,0.00018975,2]
[322007562,1712683838154,-382.40900223,0.00018975,2]
[322007564,1712683838166,-5568.81533182,0.00018975,2]
[322007566,1712683838178,-4372.79035412,0.00018975,2]
[322007574,1712683839617,-314.50344934,0.00018975,2]
[322007575,1712683839629,-3488.74530868,0.00018975,2]
[322007576,1712683839641,-258017.92608511,0.00018975,2]
[322007577,1712683839677,-3428.31262508,0.00018975,2]
[322007578,1712683839752,-285.00775174,0.00018965,2]
[322007579,1712683839762,-33066.6121285,0.00018975,2]
[322007580,1712683839773,-548.56690067,0.00018975,2]
[322007581,1712683839784,-833.59487006,0.00018975,2]
[322007582,1712683839796,-212700.56002609,0.00018975,2]
[322007583,1712683839808,-7051.34344873,0.00018975,2]
[322007584,1712683839879,-66587.94788031,0.00018975,2]
[322007585,1712683839890,-4760.91,0.00018975,2]
[322007586,1712683839907,-956.77237566,0.00018975,2]
[322007587,1712683839920,-484.23808323,0.00018975,2]
[322007588,1712683839955,-265.41260014,0.00018975,2]
[322007589,1712683839967,-585.10452513,0.00018975,2]
[322007601,1712683840908,156.83066497,0.00017076,2]
[322007602,1712683841042,150.0,0.00019,20]
[322007617,1712683842623,-264.16862859,0.0001892,2]
[322007618,1712683842637,-3724.61409815,0.0001892,2]
[322007619,1712683842646,-9990.41073226,0.00018975,2]
[322007620,1712683843192,-6854.67936,0.00018975,2]
[322007621,1712683843791,-18498.09232414,0.00018975,2]
[322007622,1712683843802,-12731.03549938,0.00018975,2]
[322007623,1712683843970,-2488.81490141,0.00018975,2]
[322007624,1712683844031,-3339.60890479,0.00018975,2]
[322007625,1712683844111,-1974.36796556,0.00018975,2]
[322007626,1712683844123,-34385.133,0.00018975,2]
[322007627,1712683844135,-1440.382452,0.00018975,2]
[322007631,1712683844327,-0.00715216,0.00018975,2]
[322007632,1712683844338,-18011.71181088,0.00018975,2]
[322007633,1712683844499,569.27750782,0.00018974,7]
[322007644,1712683845742,-1019.25621637,0.00018975,2]
[322007645,1712683846009,-26047.75542071,0.00018975,2]
[322007647,1712683846164,-137027.4,0.00018975,2]
[322007648,1712683846176,-9841.11900192,0.00018975,2]
[322007649,1712683846189,-863.8,0.00018975,2]
[322007653,1712683846475,-281.37924832,0.00018975,2]
[322007654,1712683849745,312.48,0.00017922,2]
[322007656,1712683857357,168.18,0.00014674,2]
[322007658,1712683863513,200.0,0.00018,20]
[322007662,1712683883157,469.599401,0.00017934,2]
[322007668,1712683926759,10000.0,0.00018,20]
[322007672,1712683946464,100000.0,0.00018,20]
[322007674,1712683982311,33533.92936836,0.00018,20]
[322007675,1712684008174,453.03,0.00017986,2]
[322007680,1712684050206,-216.08179167,0.00018023,2]
[322007681,1712684050230,-2174.70875384,0.00018024,2]
[322007682,1712684050253,-258.02161286,0.00018025,2]
[322007683,1712684050529,-341.15,0.00018218,2]
[322007684,1712684050553,-1085.48,0.00018263,2]
[322007685,1712684050575,-1000.0,0.00018574,2]
[322007686,1712684050600,-3588.0759,0.00018574,2]
[322007687,1712684050621,-52947.48194163,0.00018574,2]
[322007699,1712684084079,794.28,0.00016147,2]
[322007701,1712684087176,163.86278893,0.00017984,2]
[322007709,1712684130536,250.0,0.00017959,2]
[322007712,1712684141984,29899.12872063,0.00032449,30]
[322007716,1712684217018,16574.72,0.00017752,2]
[322007719,1712684224361,224.0,0.00017752,2]
[322007721,1712684230936,297.81,0.00017752,2]
[322007722,1712684252387,1000.0,0.00032449,120]
[322007724,1712684259830,23900.0,0.00017726,2]
[322007725,1712684275288,1648.16,0.00017752,2]
[322007727,1712684278865,164.62697852,0.00017941,2]
[322007729,1712684293325,1054.0,0.00018,2]
[322007730,1712684298493,500.0,0.00017749,2]
[322007731,1712684313327,500.0,0.00017749,2]
[322007734,1712684378459,723.32,0.0001775,2]
[322007736,1712684435947,811.95,0.00017906,2]
[322007737,1712684442743,1744.16380478,0.00014004,2]
[322007741,1712684462744,1744.16380478,0.00014004,2]
[322007742,1712684478746,1744.16380478,0.00014004,2]
[322007743,1712684494765,1744.16380478,0.00014004,2]
[322007744,1712684514751,633.01139425,0.00014004,2]
[322007745,1712684535261,3247.63,0.00017767,2]
[322007747,1712684579406,200.0,0.00017768,2]
[322007750,1712684582857,754.56,0.0001585,2]
[322007751,1712684659664,175.95,0.00017862,2]
[322007754,1712684707315,297.81,0.00017739,2]
[322007755,1712684719213,150.0,0.00017088,2]
[322007757,1712684721781,150.0,0.00017088,2]
[322007759,1712684738706,150.0,0.00017088,2]
[322007762,1712684791446,820.8,0.00017692,2]
[322007766,1712684810569,13440.13,0.00017692,2]
[322007810,1712684862918,481.88,0.00017681,2]
[322007811,1712684878035,12554.9244,0.0001792,2]
[322007850,1712685032675,-347.96815075,0.00018007,2]
[322007851,1712685032704,-700.08093092,0.00018007,2]
[322007853,1712685032822,-3265.32294885,0.00018007,2]
[322007854,1712685032832,-2202.70360446,0.00018008,2]
[322007855,1712685032842,-531.79720941,0.00018011,2]
[322007856,1712685032851,-9484.43090369,0.00018012,2]
[322007857,1712685032860,-150.0,0.00018012,2]
[322007858,1712685032869,-754.56,0.00018114,2]
[322007859,1712685032878,-163.86278893,0.00018167,2]
[322007860,1712685032889,-167.14,0.00018185,2]
[322007861,1712685032904,-163.86278893,0.0001835,2]
[322007862,1712685032914,-499.99,0.00018384,2]
[322007863,1712685032923,-9999.99,0.00018384,2]
[322007864,1712685032931,-150.0,0.00018384,2]
[322007865,1712685032941,-1000.0,0.0001841,2]
[322007867,1712685032950,-150.99,0.0001841,2]
[322007869,1712685032959,-5556.18796743,0.0001841,2]
[322007871,1712685032971,-98754.02473403,0.0001841,2]
[322007872,1712685032981,-3219.87526811,0.00018411,2]
[322007875,1712685033012,-1700.0,0.00018411,2]
[322007876,1712685033043,-5778.2467046,0.00018411,2]
[322007881,1712685038113,-1780.29964509,0.00018006,2]
[322007883,1712685038127,-9301.86802729,0.00018411,2]
[322007885,1712685038136,-1030.71,0.00018411,2]
[322007886,1712685038146,-1000.0,0.00018533,2]
[322007887,1712685038155,-163.86278893,0.00018534,2]
[322007888,1712685038168,-9805.2047817,0.00018562,2]
[322007889,1712685038177,-3760.94825747,0.00018572,2]
[322007890,1712685038187,-1000.0,0.00018572,2]
[322007891,1712685038196,-1000.0,0.00018572,2]
[322007892,1712685038206,-47052.51805837,0.00018574,2]
[322007893,1712685038216,-2065.044,0.00018574,2]
[322007894,1712685038226,-3182.1133,0.00018574,2]
[322007895,1712685038236,-1605.76747328,0.00018574,2]
[322007896,1712685038247,-277.352923,0.0001863,2]
[322007897,1712685038258,-155.0,0.00018672,2]
[322007898,1712685038269,-4322.16063325,0.00018672,2]
[322007899,1712685038280,-1296.33667789,0.00018672,2]
[322007900,1712685038290,-407.47196267,0.00018672,2]
[322007901,1712685038299,-193.93233813,0.00018672,2]
[322007903,1712685038310,-408.09213224,0.00018672,2]
[322007904,1712685038320,-276.02760212,0.00018672,2]
[322007906,1712685038330,-500.0,0.00018672,2]
[322007908,1712685038340,-266.79799477,0.00018672,2]
[322007909,1712685038350,-3374.83061436,0.00018672,2]
[322007910,1712685038359,-192.30060608,0.00018672,2]
[322007911,1712685038368,-362.35522605,0.00018672,2]
[322007912,1712685038378,-1239.24531074,0.00018672,2]
[322007913,1712685038388,-171.39366108,0.00018672,2]
[322007914,1712685038397,-155.0,0.00018672,2]
[322007915,1712685038407,-839.67768077,0.00018673,2]
[322007916,1712685038417,-245000.0,0.00018674,2]
[322007917,1712685038427,-500.0,0.00018674,2]
[322007918,1712685038436,-1850.77,0.000187,2]